[Event "44th Chess Olympiad Women 2022"]
[Site "Chennai"]
[Date "2022.08.03"]
[Round "6.54"]
[White "Kapalamula Martha"]
[Black "Leung, Hoi Ting"]
[Result "0-1"]
[WhiteElo "1237"]
[BlackElo "1277"]
[Annotator "NA RC"]
[PlyCount "67"]
[EventDate "2022.??.??"]
[TimeControl "60"]

1. e4 {[%emt 0:00:06]} e6 {[%emt 0:00:12]} 2. d4 {[%emt 0:00:13]} d5 {[%emt 0:
00:00]} 3. e5 {[%emt 0:00:52]} c5 {[%emt 0:00:33]} 4. Nf3 {[%emt 0:00:22]} Nc6
{[%emt 0:00:46]} 5. Bb5 {[%emt 0:00:41]} Qb6 {[%emt 0:01:22]} 6. Bxc6+ {
[%emt 0:00:40]} bxc6 {[%emt 0:01:58]} 7. O-O {[%emt 0:03:26]} Ne7 {[%emt 0:00:
00]} 8. Nc3 {[%emt 0:00:46]} Nf5 {[%emt 0:03:28]} 9. Na4 {[%emt 0:02:57]} Qb5 {
[%emt 0:03:11]} 10. b3 {[%emt 0:03:36]} Be7 {[%emt 0:04:53]} 11. Ba3 {[%emt 0:
00:00]} c4 {[%emt 0:06:34]} 12. Bxe7 {[%emt 0:01:22]} Nxe7 {[%emt 0:02:13]} 13.
Rb1 {[%emt 0:01:17]} O-O {[%emt 0:02:36]} 14. c3 {[%emt 0:00:20]} cxb3 {
[%emt 0:03:01]} 15. axb3 {[%emt 0:00:16]} Ba6 {[%emt 0:01:44]} 16. Qc2 {
[%emt 0:00:35]} Qd3 {[%emt 0:01:26]} 17. Qa2 {[%emt 0:01:27]} Bb5 {[%emt 0:00:
00]} 18. Rbd1 {[%emt 0:08:25]} Qe2 {[%emt 0:03:26]} 19. Qa3 {[%emt 0:00:17]}
Ng6 {[%emt 0:01:55]} 20. Rfe1 {[%emt 0:01:35]} Qc2 {[%emt 0:01:09]} 21. g3 {
[%emt 0:02:02]} Qf5 {[%emt 0:03:38]} 22. Re3 {[%emt 0:02:07]} f6 {[%emt 0:00:
00]} 23. Qd6 {[%emt 0:26:37]} fxe5 {[%emt 0:04:17]} 24. dxe5 {[%emt 0:07:08]}
Qg4 {[%emt 0:03:12]} 25. h3 {[%emt 0:16:56]} Qxh3 {[%emt 0:04:57]} 26. Ng5 {
[%emt 0:00:47]} Qh5 {[%emt 0:03:29]} 27. Qxe6+ {[%emt 0:01:44]} Kh8 {[%emt 0:
00:00]} 28. Nb2 {[%emt 0:05:44]} Qxg5 {[%emt 0:02:07]} 29. c4 {[%emt 0:02:41]}
Rae8 {[%emt 0:06:50]} 30. Qd6 {[%emt 0:01:11]} Qf5 {[%emt 0:04:28]} 31. Nd3 {
[%emt 0:00:30]} dxc4 {[%emt 0:00:43]} 32. bxc4 {[%emt 0:00:25]} Bxc4 {[%emt 0:
00:00]} 33. Nf4 {[%emt 0:00:37]} Nxf4 {[%emt 0:00:35]} 34. e6 {[%emt 0:00:00]}
0-1

[Event "44th Chess Olympiad Women 2022"]
[Site "Chennai"]
[Date "2022.08.03"]
[Round "6.54"]
[White "Lam, Ka Yan"]
[Black "Banda Tapiwa"]
[Result "1-0"]
[WhiteElo "1223"]
[BlackElo "1238"]
[Annotator "NA RC"]
[PlyCount "109"]
[EventDate "2022.??.??"]
[TimeControl "60"]

1. e4 {[%emt 0:00:09]} e5 {[%emt 0:00:05]} 2. Nf3 {[%emt 0:00:07]} Nc6 {
[%emt 0:00:05]} 3. Bb5 {[%emt 0:00:24]} d6 {[%emt 0:01:08]} 4. O-O {[%emt 0:00:
00]} Nf6 {[%emt 0:00:04]} 5. d3 {[%emt 0:01:44]} Be7 {[%emt 0:00:10]} 6. Be3 {
[%emt 0:11:48]} a6 {[%emt 0:01:32]} 7. Ba4 {[%emt 0:00:29]} b5 {[%emt 0:00:05]}
8. Bb3 {[%emt 0:00:08]} Na5 {[%emt 0:00:12]} 9. Nc3 {[%emt 0:03:18]} Nxb3 {
[%emt 0:00:37]} 10. axb3 {[%emt 0:00:30]} O-O {[%emt 0:00:13]} 11. Nxb5 {
[%emt 0:02:20]} Bg4 {[%emt 0:00:17]} 12. Na7 {[%emt 0:02:48]} Bc8 {[%emt 0:00:
00]} 13. Nc6 {[%emt 0:06:01]} Qd7 {[%emt 0:00:14]} 14. Nxe7+ {[%emt 0:00:21]}
Qxe7 {[%emt 0:00:06]} 15. Bg5 {[%emt 0:01:19]} h6 {[%emt 0:00:06]} 16. Bh4 {
[%emt 0:04:21]} Bg4 {[%emt 0:00:53]} 17. Re1 {[%emt 0:05:00]} g5 {[%emt 0:00:
00]} 18. Bg3 {[%emt 0:00:26]} Nh5 {[%emt 0:00:06]} 19. h3 {[%emt 0:02:05]} Bxf3
{[%emt 0:00:29]} 20. Qxf3 {[%emt 0:00:23]} Nxg3 {[%emt 0:00:06]} 21. Qxg3 {
[%emt 0:01:18]} c5 {[%emt 0:00:16]} 22. Ra4 {[%emt 0:00:59]} Ra7 {[%emt 0:00:
00]} 23. Rea1 {[%emt 0:00:22]} Rfa8 {[%emt 0:00:06]} 24. Qe3 {[%emt 0:05:57]}
f6 {[%emt 0:00:27]} 25. Qd2 {[%emt 0:07:23]} Qc7 {[%emt 0:01:11]} 26. Qc3 {
[%emt 0:00:29]} a5 {[%emt 0:01:06]} 27. Qc4+ {[%emt 0:00:34]} Kg7 {[%emt 0:00:
00]} 28. Qd5 {[%emt 0:02:18]} Rb8 {[%emt 0:00:31]} 29. f3 {[%emt 0:06:01]} Rb4
{[%emt 0:01:08]} 30. Kf2 {[%emt 0:06:21]} Rd4 {[%emt 0:02:16]} 31. Qe6 {
[%emt 0:00:26]} Rxa4 {[%emt 0:01:36]} 32. Rxa4 {[%emt 0:00:05]} Rb7 {[%emt 0:
00:00]} 33. Kg3 {[%emt 0:01:08]} Rb4 {[%emt 0:00:19]} 34. Ra1 {[%emt 0:01:07]}
Rd4 {[%emt 0:02:40]} 35. Kg4 {[%emt 0:02:37]} d5 {[%emt 0:05:58]} 36. Kf5 {
[%emt 0:06:01]} Qf7 {[%emt 0:01:34]} 37. Qxf7+ {[%emt 0:00:39]} Kxf7 {[%emt 0:
00:00]} 38. Rxa5 {[%emt 0:00:29]} dxe4 {[%emt 0:00:07]} 39. fxe4 {[%emt 0:00:
00]} Rd6 {[%emt 0:01:27]} 40. Rxc5 {[%emt 0:00:14]} Ra6 {[%emt 0:00:14]} 41.
Rc7+ {[%emt 0:31:18]} Ke8 {[%emt 0:30:24]} 42. b4 {[%emt 0:00:30]} Kd8 {
[%emt 0:00:33]} 43. Rh7 {[%emt 0:00:23]} Ra2 {[%emt 0:00:16]} 44. Kxf6 {
[%emt 0:04:51]} Rxb2 {[%emt 0:00:18]} 45. Rxh6 {[%emt 0:03:28]} Rxb4 {[%emt 0:
00:00]} 46. Kxe5 {[%emt 0:00:49]} Rb2 {[%emt 0:00:09]} 47. Rc6 {[%emt 0:00:18]}
Kd7 {[%emt 0:00:05]} 48. Rc5 {[%emt 0:00:30]} Rb1 {[%emt 0:00:13]} 49. Kd4 {
[%emt 0:00:29]} g4 {[%emt 0:02:51]} 50. hxg4 {[%emt 0:01:19]} Rg1 {[%emt 0:00:
00]} 51. g5 {[%emt 0:00:27]} Rxg2 {[%emt 0:00:03]} 52. c4 {[%emt 0:00:30]} Rg3
{[%emt 0:00:47]} 53. Rf5 {[%emt 0:00:55]} Ke7 {[%emt 0:01:25]} 54. c5 {[%emt 0:
00:00]} Kd7 {[%emt 0:00:07]} 55. Kc4 {[%emt 0:00:21]} 1-0

[Event "44th Chess Olympiad Women 2022"]
[Site "Chennai"]
[Date "2022.08.03"]
[Round "6.55"]
[White "Beukes Jamie-Nicole"]
[Black "Curwin, Nickaylah"]
[Result "0-1"]
[WhiteElo "1231"]
[BlackElo "1499"]
[Annotator "NA RC"]
[PlyCount "108"]
[EventDate "2022.??.??"]
[TimeControl "60"]

1. e4 {[%emt 0:00:04]} e6 {[%emt 0:00:06]} 2. d4 {[%emt 0:00:15]} d5 {[%emt 0:
00:00]} 3. Nc3 {[%emt 0:00:22]} dxe4 {[%emt 0:00:17]} 4. Nxe4 {[%emt 0:00:11]}
Bd7 {[%emt 0:00:06]} 5. Nf3 {[%emt 0:00:26]} Bc6 {[%emt 0:00:42]} 6. Bd3 {
[%emt 0:00:46]} Nd7 {[%emt 0:00:50]} 7. Bg5 {[%emt 0:01:01]} Ngf6 {[%emt 0:00:
00]} 8. Qe2 {[%emt 0:02:54]} Be7 {[%emt 0:01:31]} 9. Ng3 {[%emt 0:03:26]} h6 {
[%emt 0:05:17]} 10. Bd2 {[%emt 0:04:07]} b6 {[%emt 0:02:53]} 11. O-O {[%emt 0:
00:00]} O-O {[%emt 0:10:18]} 12. Rad1 {[%emt 0:04:05]} Bb7 {[%emt 0:03:40]} 13.
Rfe1 {[%emt 0:07:51]} c5 {[%emt 0:01:23]} 14. dxc5 {[%emt 0:25:46]} Nxc5 {
[%emt 0:04:07]} 15. Bb5 {[%emt 0:04:54]} Qc7 {[%emt 0:03:25]} 16. Bb4 {[%emt 0:
00:00]} Rad8 {[%emt 0:02:59]} 17. Ne5 {[%emt 0:05:59]} Nd5 {[%emt 0:21:02]} 18.
Bxc5 {[%emt 0:05:56]} Bxc5 {[%emt 0:00:00]} 19. Nd3 {[%emt 0:01:40]} Nf4 {
[%emt 0:00:00]} 20. Nxf4 {[%emt 0:02:06]} Qxf4 {[%emt 0:00:00]} 21. Bd3 {
[%emt 0:05:41]} Qf6 {[%emt 0:12:20]} 22. c3 {[%emt 0:01:32]} a5 {[%emt 0:04:43]
} 23. Ne4 {[%emt 0:01:41]} Qg6 {[%emt 0:02:16]} 24. Ng3 {[%emt 0:01:47]} Qg5 {
[%emt 0:01:04]} 25. Be4 {[%emt 0:01:08]} Bd5 {[%emt 0:01:50]} 26. c4 {[%emt 0:
00:00]} Bxe4 {[%emt 0:03:07]} 27. Nxe4 {[%emt 0:00:15]} Qe7 {[%emt 0:01:12]}
28. Nxc5 {[%emt 0:00:44]} Qxc5 {[%emt 0:00:12]} 29. b3 {[%emt 0:00:33]} Rfe8 {
[%emt 0:02:44]} 30. Rd2 {[%emt 0:00:58]} Kf8 {[%emt 0:02:09]} 31. Red1 {
[%emt 0:00:35]} Qg5 {[%emt 0:02:46]} 32. g3 {[%emt 0:01:14]} Rxd2 {[%emt 0:00:
00]} 33. Qxd2 {[%emt 0:00:21]} Qxd2 {[%emt 0:00:21]} 34. Rxd2 {[%emt 0:00:04]}
Ke7 {[%emt 0:00:07]} 35. Kf1 {[%emt 0:00:13]} Rc8 {[%emt 0:00:16]} 36. Ke2 {
[%emt 0:00:16]} Rc5 {[%emt 0:01:51]} 37. Rd4 {[%emt 0:01:12]} e5 {[%emt 0:00:
00]} 38. Rd5 {[%emt 0:00:55]} Rxd5 {[%emt 0:00:15]} 39. cxd5 {[%emt 0:00:11]}
Kd6 {[%emt 0:00:04]} 40. Kd3 {[%emt 0:00:43]} Kxd5 {[%emt 0:00:08]} 41. f3 {
[%emt 0:30:13]} f5 {[%emt 0:30:20]} 42. Ke3 {[%emt 0:01:02]} g5 {[%emt 0:01:34]
} 43. h3 {[%emt 0:00:00]} h5 {[%emt 0:00:00]} 44. a3 {[%emt 0:00:00]} a4 {
[%emt 0:00:00]} 45. bxa4 {[%emt 0:00:00]} Kc4 {[%emt 0:00:00]} 46. f4 {[%emt 0:
00:00]} exf4+ {[%emt 0:00:00]} 47. gxf4 {[%emt 0:00:00]} g4 {[%emt 0:00:00]}
48. hxg4 {[%emt 0:00:00]} hxg4 {[%emt 0:00:00]} 49. Kf2 {[%emt 0:00:00]} Kb3 {
[%emt 0:00:00]} 50. Kg3 {[%emt 0:00:00]} Kxa4 {[%emt 0:00:00]} 51. Kh4 {
[%emt 0:00:00]} Kxa3 {[%emt 0:00:00]} 52. Kg5 {[%emt 0:00:00]} g3 {[%emt 0:00:
00]} 53. Kxf5 {[%emt 0:00:00]} g2 {[%emt 0:00:00]} 54. Ke5 {[%emt 0:00:00]}
g1=Q {[%emt 0:00:00]} 0-1

[Event "44th Chess Olympiad Women 2022"]
[Site "Chennai"]
[Date "2022.08.03"]
[Round "6.55"]
[White "Clarke, Adani"]
[Black "Van Wyk, Keisha C"]
[Result "1-0"]
[WhiteElo "1812"]
[BlackElo "1237"]
[Annotator "NA RC"]
[PlyCount "63"]
[EventDate "2022.??.??"]
[TimeControl "60"]

1. d4 {[%emt 0:00:03]} Nf6 {[%emt 0:00:50]} 2. c4 {[%emt 0:00:09]} g6 {[%emt 0:
00:00]} 3. Nc3 {[%emt 0:00:12]} Bg7 {[%emt 0:00:11]} 4. e4 {[%emt 0:00:11]} d6
{[%emt 0:00:26]} 5. Be2 {[%emt 0:00:07]} O-O {[%emt 0:01:19]} 6. Be3 {[%emt 0:
00:00]} c5 {[%emt 0:03:31]} 7. d5 {[%emt 0:00:49]} e6 {[%emt 0:02:36]} 8. g4 {
[%emt 0:09:41]} exd5 {[%emt 0:03:05]} 9. exd5 {[%emt 0:02:15]} Re8 {[%emt 0:00:
00]} 10. h3 {[%emt 0:01:59]} Na6 {[%emt 0:04:10]} 11. Nf3 {[%emt 0:01:37]} Nc7
{[%emt 0:03:20]} 12. Kf1 {[%emt 0:04:34]} a6 {[%emt 0:05:37]} 13. a4 {[%emt 0:
00:00]} Qe7 {[%emt 0:03:42]} 14. a5 {[%emt 0:02:57]} Ne4 {[%emt 0:06:00]} 15.
Nxe4 {[%emt 0:02:21]} Qxe4 {[%emt 0:01:36]} 16. Bd3 {[%emt 0:00:17]} Qe7 {
[%emt 0:01:17]} 17. Rb1 {[%emt 0:00:12]} Rf8 {[%emt 0:01:22]} 18. Qd2 {[%emt 0:
00:00]} Bd7 {[%emt 0:03:34]} 19. Kg2 {[%emt 0:03:37]} f5 {[%emt 0:03:19]} 20.
g5 {[%emt 0:06:09]} Rf7 {[%emt 0:02:05]} 21. Bf4 {[%emt 0:00:45]} Re8 {[%emt 0:
00:00]} 22. b4 {[%emt 0:05:55]} Na8 {[%emt 0:08:07]} 23. bxc5 {[%emt 0:02:39]}
Be5 {[%emt 0:03:43]} 24. cxd6 {[%emt 0:01:39]} Bxd6 {[%emt 0:01:30]} 25. Rxb7 {
[%emt 0:05:57]} Bxf4 {[%emt 0:03:58]} 26. Qxf4 {[%emt 0:00:10]} Qd8 {[%emt 0:
00:00]} 27. Rhb1 {[%emt 0:07:58]} Qxa5 {[%emt 0:02:46]} 28. Ne5 {[%emt 0:01:32]
} Nc7 {[%emt 0:09:08]} 29. Nxf7 {[%emt 0:01:23]} Nxd5 {[%emt 0:01:34]} 30. Nh6+
{[%emt 0:00:54]} Kf8 {[%emt 0:00:48]} 31. Qd6+ {[%emt 0:00:39]} Ne7 {[%emt 0:
00:00]} 32. Qf6# {[%emt 0:00:25]} 1-0

[Event "44th Chess Olympiad Women 2022"]
[Site "Chennai"]
[Date "2022.08.03"]
[Round "6.56"]
[White "Cho, Hung-Ling"]
[Black "Ranasinghe, S D.."]
[Result "1-0"]
[WhiteElo "1576"]
[BlackElo "1687"]
[Annotator "NA RC"]
[PlyCount "135"]
[EventDate "2022.??.??"]
[TimeControl "60"]

1. f4 {[%emt 0:00:16]} c5 {[%emt 0:01:41]} 2. Nf3 {[%emt 0:00:27]} Nc6 {
[%emt 0:00:08]} 3. e3 {[%emt 0:00:19]} d6 {[%emt 0:00:32]} 4. b3 {[%emt 0:00:
00]} a6 {[%emt 0:00:42]} 5. Bb2 {[%emt 0:01:53]} Nf6 {[%emt 0:01:24]} 6. Be2 {
[%emt 0:02:47]} Qc7 {[%emt 0:06:05]} 7. O-O {[%emt 0:02:55]} e5 {[%emt 0:00:39]
} 8. fxe5 {[%emt 0:03:24]} dxe5 {[%emt 0:00:12]} 9. d4 {[%emt 0:16:22]} exd4 {
[%emt 0:02:02]} 10. exd4 {[%emt 0:06:24]} cxd4 {[%emt 0:01:28]} 11. Nxd4 {
[%emt 0:13:15]} Nxd4 {[%emt 0:00:56]} 12. Bxd4 {[%emt 0:00:14]} Bc5 {[%emt 0:
00:00]} 13. Kh1 {[%emt 0:07:43]} Bxd4 {[%emt 0:00:09]} 14. Qxd4 {[%emt 0:00:27]
} Qxc2 {[%emt 0:03:02]} 15. Nc3 {[%emt 0:08:29]} Qg6 {[%emt 0:01:49]} 16. Bd3 {
[%emt 0:06:41]} Qg5 {[%emt 0:03:35]} 17. Rae1+ {[%emt 0:00:12]} Be6 {[%emt 0:
00:00]} 18. Qd6 {[%emt 0:09:26]} Rd8 {[%emt 0:07:56]} 19. Rxe6+ {[%emt 0:00:11]
} fxe6 {[%emt 0:00:05]} 20. Qxe6+ {[%emt 0:00:06]} Kf8 {[%emt 0:00:07]} 21. Bc4
{[%emt 0:00:05]} Qh5 {[%emt 0:17:19]} 22. Rxf6+ {[%emt 0:04:14]} gxf6 {[%emt 0:
00:00]} 23. Qxf6+ {[%emt 0:00:04]} Ke8 {[%emt 0:00:07]} 24. Qxh8+ {[%emt 0:00:
00]} Kd7 {[%emt 0:01:23]} 25. Qd4+ {[%emt 0:00:32]} Kc7 {[%emt 0:00:31]} 26.
Nd5+ {[%emt 0:04:28]} Kb8 {[%emt 0:00:26]} 27. h3 {[%emt 0:03:42]} Qg6 {
[%emt 0:02:02]} 28. Qe5+ {[%emt 0:05:20]} Ka7 {[%emt 0:00:20]} 29. Qe3+ {
[%emt 0:01:25]} Kb8 {[%emt 0:00:07]} 30. Bd3 {[%emt 0:00:53]} Qg7 {[%emt 0:00:
00]} 31. Be4 {[%emt 0:01:03]} Qa1+ {[%emt 0:00:18]} 32. Kh2 {[%emt 0:00:07]}
Qg7 {[%emt 0:01:06]} 33. Qg3+ {[%emt 0:00:11]} Qxg3+ {[%emt 0:00:12]} 34. Kxg3
{[%emt 0:00:02]} h6 {[%emt 0:00:18]} 35. a4 {[%emt 0:01:27]} Re8 {[%emt 0:00:
00]} 36. Nf6 {[%emt 0:00:45]} Re6 {[%emt 0:00:12]} 37. Nd7+ {[%emt 0:00:36]}
Ka7 {[%emt 0:02:51]} 38. Kf4 {[%emt 0:00:29]} Re7 {[%emt 0:00:26]} 39. Ne5 {
[%emt 0:00:21]} Kb6 {[%emt 0:00:14]} 40. g4 {[%emt 0:00:55]} Kc5 {[%emt 0:00:
00]} 41. h4 {[%emt 0:10:16]} Re8 {[%emt 0:01:32]} 42. Bxb7 {[%emt 0:02:16]} a5
{[%emt 0:01:14]} 43. Be4 {[%emt 0:04:16]} Rf8+ {[%emt 0:00:11]} 44. Bf5 {
[%emt 0:01:30]} Kb4 {[%emt 0:00:49]} 45. Nd7 {[%emt 0:00:10]} Re8 {[%emt 0:00:
00]} 46. g5 {[%emt 0:03:39]} hxg5+ {[%emt 0:00:14]} 47. hxg5 {[%emt 0:00:23]}
Kxb3 {[%emt 0:00:12]} 48. Nf6 {[%emt 0:01:54]} Re7 {[%emt 0:02:03]} 49. Bd7 {
[%emt 0:00:30]} Kc4 {[%emt 0:00:26]} 50. g6 {[%emt 0:02:20]} Kd4 {[%emt 0:00:
00]} 51. Bf5 {[%emt 0:01:19]} Rg7 {[%emt 0:00:39]} 52. Nh5 {[%emt 0:00:21]} Rg8
{[%emt 0:00:47]} 53. g7 {[%emt 0:00:12]} Kc5 {[%emt 0:00:04]} 54. Be6 {[%emt 0:
00:00]} Rd8 {[%emt 0:00:17]} 55. Nf6 {[%emt 0:02:51]} Kb4 {[%emt 0:00:24]} 56.
Bd7 {[%emt 0:00:24]} Kc5 {[%emt 0:02:09]} 57. g8=Q {[%emt 0:00:45]} Rxg8 {
[%emt 0:00:29]} 58. Nxg8 {[%emt 0:00:06]} Kd6 {[%emt 0:00:05]} 59. Nf6 {
[%emt 0:00:22]} Ke7 {[%emt 0:00:07]} 60. Ke5 {[%emt 0:00:06]} Kd8 {[%emt 0:00:
00]} 61. Kd5 {[%emt 0:00:45]} Kc7 {[%emt 0:00:07]} 62. Kc5 {[%emt 0:00:11]} Kb7
{[%emt 0:00:05]} 63. Kb5 {[%emt 0:00:16]} Ka7 {[%emt 0:00:02]} 64. Kxa5 {
[%emt 0:00:10]} Kb7 {[%emt 0:00:03]} 65. Kb5 {[%emt 0:00:22]} Ka7 {[%emt 0:00:
00]} 66. a5 {[%emt 0:00:07]} Kb7 {[%emt 0:00:13]} 67. a6+ {[%emt 0:00:26]} Kc7
{[%emt 0:00:09]} 68. Bc6 {[%emt 0:00:24]} 1-0

[Event "44th Chess Olympiad Women 2022"]
[Site "Chennai"]
[Date "2022.08.03"]
[Round "6.56"]
[White "Shih, Ching-An"]
[Black "Abeysinghe, H M H Janandani"]
[Result "1/2-1/2"]
[WhiteElo "1582"]
[BlackElo "1516"]
[Annotator "NA RC"]
[PlyCount "71"]
[EventDate "2022.??.??"]
[TimeControl "60"]

1. Nf3 {[%emt 0:00:04]} g6 {[%emt 0:00:23]} 2. g3 {[%emt 0:00:07]} Bg7 {
[%emt 0:00:05]} 3. Bg2 {[%emt 0:00:08]} d6 {[%emt 0:00:37]} 4. d4 {[%emt 0:00:
00]} Nf6 {[%emt 0:00:38]} 5. O-O {[%emt 0:00:15]} O-O {[%emt 0:00:38]} 6. c3 {
[%emt 0:00:36]} Nbd7 {[%emt 0:00:45]} 7. Re1 {[%emt 0:00:30]} c5 {[%emt 0:00:
00]} 8. e4 {[%emt 0:01:18]} e6 {[%emt 0:05:19]} 9. Nbd2 {[%emt 0:04:52]} cxd4 {
[%emt 0:01:41]} 10. Nxd4 {[%emt 0:00:45]} Nb6 {[%emt 0:05:46]} 11. N2b3 {
[%emt 0:01:36]} d5 {[%emt 0:10:17]} 12. exd5 {[%emt 0:00:45]} Nfxd5 {[%emt 0:
00:00]} 13. Nc5 {[%emt 0:15:12]} Qc7 {[%emt 0:07:53]} 14. Na4 {[%emt 0:01:04]}
Bd7 {[%emt 0:06:28]} 15. Nxb6 {[%emt 0:00:12]} Nxb6 {[%emt 0:00:44]} 16. Be3 {
[%emt 0:01:07]} Nc4 {[%emt 0:03:39]} 17. Qc1 {[%emt 0:01:35]} Nxe3 {[%emt 0:00:
00]} 18. Qxe3 {[%emt 0:00:12]} Rac8 {[%emt 0:06:44]} 19. Rad1 {[%emt 0:03:12]}
Rfd8 {[%emt 0:02:37]} 20. Nb3 {[%emt 0:01:39]} b6 {[%emt 0:02:18]} 21. Rd2 {
[%emt 0:04:17]} Ba4 {[%emt 0:08:16]} 22. Red1 {[%emt 0:00:17]} Rxd2 {[%emt 0:
00:00]} 23. Rxd2 {[%emt 0:00:04]} Bxb3 {[%emt 0:01:07]} 24. axb3 {[%emt 0:00:
00]} Rd8 {[%emt 0:00:09]} 25. Bf3 {[%emt 0:04:29]} Bf6 {[%emt 0:03:49]} 26. Kg2
{[%emt 0:01:46]} Kg7 {[%emt 0:00:50]} 27. Be4 {[%emt 0:05:18]} Rxd2 {[%emt 0:
00:00]} 28. Qxd2 {[%emt 0:00:09]} Qd8 {[%emt 0:01:31]} 29. Qxd8 {[%emt 0:00:55]
} Bxd8 {[%emt 0:00:07]} 30. f4 {[%emt 0:00:13]} Bc7 {[%emt 0:00:28]} 31. b4 {
[%emt 0:00:51]} f5 {[%emt 0:00:40]} 32. Bc6 {[%emt 0:00:53]} e5 {[%emt 0:00:25]
} 33. fxe5 {[%emt 0:00:07]} Bxe5 {[%emt 0:00:05]} 34. Kf3 {[%emt 0:00:08]} Kf6
{[%emt 0:00:14]} 35. Bd5 {[%emt 0:00:41]} h6 {[%emt 0:00:41]} 36. Bc4 {[%emt 0:
00:00]} 1/2-1/2

[Event "44th Chess Olympiad Women 2022"]
[Site "Chennai"]
[Date "2022.08.03"]
[Round "6.56"]
[White "Wijesuriya, G P Y.."]
[Black "Tsai, Sophie Yi-Hsuan"]
[Result "1/2-1/2"]
[WhiteElo "1579"]
[BlackElo "1131"]
[Annotator "NA RC"]
[PlyCount "66"]
[EventDate "2022.??.??"]
[TimeControl "60"]

1. e4 {[%emt 0:01:11]} c5 {[%emt 0:00:01]} 2. Nc3 {[%emt 0:00:08]} g6 {[%emt 0:
00:00]} 3. f4 {[%emt 0:00:07]} Bg7 {[%emt 0:00:12]} 4. Nf3 {[%emt 0:00:05]} Nc6
{[%emt 0:00:04]} 5. a4 {[%emt 0:00:05]} e6 {[%emt 0:00:43]} 6. e5 {[%emt 0:00:
00]} a6 {[%emt 0:00:35]} 7. Ne4 {[%emt 0:00:09]} Qb6 {[%emt 0:21:06]} 8. Nd6+ {
[%emt 0:00:39]} Kf8 {[%emt 0:02:35]} 9. b3 {[%emt 0:06:28]} Nh6 {[%emt 0:09:56]
} 10. Ba3 {[%emt 0:00:10]} Kg8 {[%emt 0:07:26]} 11. c3 {[%emt 0:20:29]} Qa7 {
[%emt 0:19:42]} 12. Bd3 {[%emt 0:00:55]} Nf5 {[%emt 0:02:43]} 13. Bxf5 {
[%emt 0:01:23]} exf5 {[%emt 0:00:16]} 14. Ng5 {[%emt 0:00:11]} Nd8 {[%emt 0:00:
00]} 15. Qf3 {[%emt 0:01:48]} b6 {[%emt 0:02:59]} 16. Ngxf7 {[%emt 0:00:12]}
Bb7 {[%emt 0:01:46]} 17. Nxb7 {[%emt 0:00:09]} Kxf7 {[%emt 0:04:35]} 18. Nd6+ {
[%emt 0:00:21]} Kg8 {[%emt 0:02:50]} 19. Qd5+ {[%emt 0:01:32]} Ne6 {[%emt 0:00:
00]} 20. O-O {[%emt 0:02:47]} h5 {[%emt 0:00:24]} 21. Kh1 {[%emt 0:01:16]} Kh7
{[%emt 0:01:00]} 22. Rf3 {[%emt 0:01:25]} Qc7 {[%emt 0:01:27]} 23. Qd3 {
[%emt 0:32:38]} Nxf4 {[%emt 0:05:10]} 24. Rxf4 {[%emt 0:00:23]} Bxe5 {[%emt 0:
00:00]} 25. Rxf5 {[%emt 0:00:13]} Qxd6 {[%emt 0:02:06]} 26. Qxd6 {[%emt 0:00:
00]} Bxd6 {[%emt 0:00:02]} 27. Rf7+ {[%emt 0:00:07]} Kh6 {[%emt 0:03:59]} 28.
Rxd7 {[%emt 0:00:03]} Rad8 {[%emt 0:01:59]} 29. Ra7 {[%emt 0:07:27]} Bf4 {
[%emt 0:04:49]} 30. Rxa6 {[%emt 0:02:48]} Rxd2 {[%emt 0:00:27]} 31. g3 {
[%emt 0:01:13]} Re8 {[%emt 0:02:04]} 32. gxf4 {[%emt 0:12:32]} Ree2 {[%emt 0:
00:00]} 33. Kg1 {[%emt 0:00:37]} Rg2+ {[%emt 0:00:20]} 1/2-1/2

[Event "44th Chess Olympiad Women 2022"]
[Site "Chennai"]
[Date "2022.08.03"]
[Round "6.57"]
[White "Bouzana, Christina"]
[Black "Kang, Sohyun"]
[Result "0-1"]
[WhiteElo "1079"]
[BlackElo "1593"]
[Annotator "NA RC"]
[PlyCount "62"]
[EventDate "2022.??.??"]
[TimeControl "60"]

1. d4 {[%emt 0:00:01]} d5 {[%emt 0:00:05]} 2. Bf4 {[%emt 0:00:05]} c5 {[%emt 0:
00:00]} 3. e3 {[%emt 0:00:30]} Nc6 {[%emt 0:00:06]} 4. c3 {[%emt 0:00:34]} Nf6
{[%emt 0:00:52]} 5. Nd2 {[%emt 0:01:31]} e6 {[%emt 0:01:05]} 6. Ngf3 {[%emt 0:
00:00]} Bd6 {[%emt 0:01:35]} 7. Bg3 {[%emt 0:00:09]} O-O {[%emt 0:00:34]} 8.
Bd3 {[%emt 0:00:13]} b6 {[%emt 0:00:17]} 9. O-O {[%emt 0:00:52]} Bb7 {[%emt 0:
00:00]} 10. e4 {[%emt 0:01:32]} Be7 {[%emt 0:02:57]} 11. e5 {[%emt 0:02:20]}
Nh5 {[%emt 0:00:33]} 12. Re1 {[%emt 0:03:36]} Rc8 {[%emt 0:03:01]} 13. Rc1 {
[%emt 0:07:43]} Nxg3 {[%emt 0:03:00]} 14. hxg3 {[%emt 0:00:14]} cxd4 {[%emt 0:
00:00]} 15. Nxd4 {[%emt 0:01:01]} Qd7 {[%emt 0:05:45]} 16. N2f3 {[%emt 0:04:23]
} a6 {[%emt 0:09:58]} 17. Nxc6 {[%emt 0:15:16]} Rxc6 {[%emt 0:02:18]} 18. Nd4 {
[%emt 0:01:42]} Rc7 {[%emt 0:00:45]} 19. Qg4 {[%emt 0:11:22]} Rfc8 {[%emt 0:00:
00]} 20. Re2 {[%emt 0:05:37]} Qa4 {[%emt 0:03:02]} 21. b3 {[%emt 0:02:57]} Qa5
{[%emt 0:01:10]} 22. c4 {[%emt 0:00:25]} b5 {[%emt 0:03:47]} 23. Nf3 {[%emt 0:
00:00]} dxc4 {[%emt 0:03:05]} 24. bxc4 {[%emt 0:00:42]} Qa3 {[%emt 0:00:51]}
25. Rd1 {[%emt 0:07:10]} bxc4 {[%emt 0:01:13]} 26. Bb1 {[%emt 0:03:24]} h6 {
[%emt 0:10:12]} 27. Re3 {[%emt 0:02:48]} Qb4 {[%emt 0:02:20]} 28. Rc1 {[%emt 0:
00:00]} Qb5 {[%emt 0:07:25]} 29. Rec3 {[%emt 0:03:42]} Bb4 {[%emt 0:04:18]} 30.
R3c2 {[%emt 0:06:16]} c3 {[%emt 0:08:32]} 31. Nd4 {[%emt 0:06:45]} Qxe5 {
[%emt 0:02:17]} 0-1